bitfinex/quotes_ETHUSD_20250406
["timestamp","ask_amount","ask_price","bid_price","bid_amount"]
[1743903616640,3.86249,1812.3,1812.2,0.17260551]
[1743903618971,3.86242,1812.4,1812.2,0.17260551]
[1743903619269,3.86242,1812.4,1812.0,4.62928]
[1743903619470,3.86242,1812.4,1812.0,5.092208]
[1743903620074,3.86242,1812.4,1812.1,0.17260888]
[1743903620771,3.86242,1812.4,1812.2,0.17260888]
[1743903621162,3.86242,1812.4,1812.3,0.17260888]
[1743903623274,7.72488,1812.4,1812.0,4.6292]
[1743903623573,7.72488,1812.4,1812.0,5.478453]
[1743903623775,3.86252,1812.3,1812.0,1.615453]
[1743903624164,3.86252,1812.3,1812.1,0.17260993]
[1743903624362,3.86252,1812.3,1812.2,0.17260993]
[1743903627953,3.86281,1812.2,1811.9,0.17260993]
[1743903628270,4.49922515,1812.2,1811.9,0.17260993]
[1743903628585,4.41292,1812.1,1812.0,0.17260993]
[1743903629387,3.86326,1812.0,1811.7,0.17260993]
[1743903630081,8.15004032,1812.0,1811.8,0.17260993]
[1743903630263,4.28675032,1812.0,1811.8,0.17260993]
[1743903630661,4.28675032,1812.0,1811.9,0.17260993]
[1743903632385,4.28675032,1812.0,1811.7,0.17260993]
[1743903632753,4.28675032,1812.0,1811.8,0.17260993]
[1743903633388,9.02000735,1812.0,1811.8,0.17260993]
[1743903633684,5.15671735,1812.0,1811.6,4.62485]
[1743903633985,8.15008032,1812.0,1811.6,4.62485]
[1743903634184,8.15008032,1812.0,1811.7,0.17264616]
[1743903634389,8.15008032,1812.0,1811.8,0.17264616]
[1743903635089,8.15008032,1812.0,1811.7,0.17264616]
[1743903635588,8.15008032,1812.0,1811.8,0.17264616]
[1743903635777,8.15008032,1812.0,1811.7,0.17264616]
[1743903636187,4.28675032,1812.0,1811.8,0.17264616]
[1743903636558,4.28675032,1812.0,1811.7,0.17264616]
[1743903637089,4.28675032,1812.0,1811.8,0.17264616]
[1743903637488,4.28675032,1812.0,1811.7,0.17264616]
[1743903637977,4.28675032,1812.0,1811.8,0.17264616]
[1743903638173,4.58504,1811.9,1811.8,0.17264616]
[1743903638579,3.86356,1811.8,1811.7,0.17264616]
[1743903639085,8.14025215,1811.8,1811.7,0.17264616]
[1743903639455,3.86429,1811.5,1811.3,0.17264616]
[1743903639662,3.86429,1811.5,1811.4,0.17264616]
[1743903639971,3.86429,1811.5,1811.3,0.17264616]
[1743903640790,3.86429,1811.5,1811.4,0.17264616]
[1743903641194,3.86429,1811.5,1811.3,0.17264616]
[1743903641895,5.13611,1811.4,1811.3,0.17264616]
[1743903642389,3.86484,1811.2,1811.1,0.1]
[1743903644061,4.41484,1811.2,1811.1,0.1]
[1743903644265,11.15653,1811.2,1811.1,0.1]
[1743903655777,10.43483,1811.2,1811.1,0.1]
[1743903655972,12.42031094,1811.2,1811.1,0.1]
[1743903662424,10.43483,1811.2,1811.1,0.1]
[1743903666227,11.15653,1811.2,1811.1,0.1]
[1743903673209,10.43483,1811.2,1811.1,0.1]
[1743903673639,13.44405282,1811.2,1811.1,0.1]
[1743903675676,10.43483,1811.2,1811.1,0.1]
[1743903675884,12.86658162,1811.2,1811.1,0.1]
[1743903683806,10.43483,1811.2,1811.1,0.1]
[1743903684102,10.43483,1811.2,1811.1,0.27272936]
[1743903685903,10.43483,1811.2,1811.1,0.27273108]
[1743903689504,6.01999,1811.2,1811.1,0.27273108]
[1743903689800,6.01999,1811.2,1811.1,1.07833108]
[1743903691019,0.00749744,1811.3,1811.2,0.8056]
[1743903691791,0.00749744,1811.3,1811.2,0.97833108]
[1743903691988,0.00749744,1811.3,1811.2,0.66706819]
[1743903692202,0.00749744,1811.3,1811.2,1.47266819]
[1743903693276,3.87211744,1811.3,1811.2,0.97833108]
[1743903695002,0.00749744,1811.3,1811.2,0.97833108]
[1743903698481,3.87211744,1811.3,1811.2,0.97833108]
[1743903698982,0.00749744,1811.3,1811.2,0.97833108]
[1743903717636,0.00749744,1811.3,1811.2,4.84317108]
[1743903717826,0.00749744,1811.3,1811.2,5.33748819]
[1743903724019,0.00749744,1811.3,1811.2,5.33744449]
[1743903724650,0.00749744,1811.3,1811.2,1.47260449]
[1743903726757,0.00749744,1811.3,1811.2,5.33744449]
[1743903729757,0.00749744,1811.3,1811.2,1.47260449]
[1743903732237,0.00749744,1811.3,1811.2,0.17268738]
[1743903736428,4.42211744,1811.3,1811.2,0.17268738]
[1743903736629,5.14381744,1811.3,1811.2,0.17268738]
[1743903737630,3.86484,1811.2,1811.1,0.1]
[1743903738168,3.86484,1811.2,1811.1,0.27272261]
[1743903738325,4.76570574,1811.2,1811.1,0.27272261]
[1743903740475,5.31570574,1811.2,1811.1,0.27272261]
[1743903741170,5.31570574,1811.2,1811.1,0.1]
[1743903751864,9.04533982,1811.2,1811.1,0.1]
[1743903754692,15.06532982,1811.2,1811.1,0.1]
[1743903764799,18.06532982,1811.2,1811.1,0.1]
[1743903765104,22.06532982,1811.2,1811.1,0.1]
[1743903765298,22.76444378,1811.2,1811.1,0.1]
[1743903790124,22.76444378,1811.2,1811.1,0.05]
[1743903790324,18.76444378,1811.2,1811.1,0.05]
[1743903793264,22.76444378,1811.2,1811.1,0.05]
[1743903801932,22.76444378,1811.2,1811.1,1e-05]
[1743903812874,20.79362982,1811.2,1811.1,1e-05]
[1743903813174,26.51262982,1811.2,1811.1,1e-05]
[1743903813479,25.61176408,1811.2,1811.1,1e-05]
[1743903814457,21.61176408,1811.2,1811.1,1e-05]
[1743903816477,25.61176408,1811.2,1811.1,1e-05]
[1743903817687,26.33346408,1811.2,1811.1,1e-05]
[1743903817990,27.03257804,1811.2,1811.1,1e-05]
[1743903818280,30.12687962,1811.2,1811.1,1e-05]
[1743903818461,29.40517962,1811.2,1811.1,1e-05]
[1743903826491,28.70606566,1811.2,1811.1,0.82911]
[1743903826685,25.61176408,1811.2,1811.1,0.82911]
[1743903833610,3.55,1811.1,1810.7,0.7618]
[1743903833770,10.42362408,1810.8,1810.7,0.7618]
[1743903834098,16.44361408,1810.8,1810.7,0.7618]
[1743903835064,16.86028995,1810.8,1810.7,0.7618]
[1743903835259,18.93287095,1810.8,1810.7,0.7618]
[1743903835799,22.93287095,1810.8,1810.7,0.7618]
[1743903837596,0.55,1810.6,1810.3,0.768]
[1743903837799,3.55793408,1810.6,1810.3,0.768]
[1743903838015,3.55793408,1810.6,1810.5,0.768]
[1743903838493,3.55793408,1810.6,1810.5,0.94078704]
[1743903840510,0.55,1810.6,1810.5,0.94078704]
[1743903842415,3.55793408,1810.6,1810.5,0.768]
[1743903843284,4.60032449,1810.6,1810.5,0.768]
[1743903844018,8.46644449,1810.6,1810.5,0.768]
[1743903846488,11.46644449,1810.6,1810.5,0.768]
[1743903849216,21.35272449,1810.6,1810.2,0.7767]
[1743903849378,21.35272449,1810.6,1810.2,0.94949791]
[1743903849772,17.48643449,1810.6,1810.2,0.94949791]
[1743903849974,17.48643449,1810.6,1810.3,0.17279791]
[1743903850208,17.48643449,1810.6,1810.4,0.7767]
[1743903850716,3.86633,1810.5,1810.4,0.7767]
[1743903851781,9.00160645,1810.5,1810.4,0.7767]
[1743903853908,3.55,1810.4,1810.3,0.17280181]
[1743903854110,6.55793408,1810.4,1810.2,0.7759]
[1743903855054,6.55793408,1810.4,1810.3,0.17280176]
[1743903856249,6.55793408,1810.4,1810.2,0.7759]
[1743903858142,10.42455408,1810.4,1810.2,0.7759]
[1743903858957,10.43205152,1810.4,1810.2,0.7759]
[1743903860747,16.45204152,1810.4,1810.2,0.7759]
[1743903862259,18.69740632,1810.4,1810.2,0.7759]
[1743903863655,18.69740632,1810.4,1810.3,0.17280404]
[1743903863968,18.69740632,1810.4,1810.2,0.7759]
[1743903865637,14.83078632,1810.4,1810.2,0.7759]
[1743903865827,9.57748744,1810.4,1810.2,0.7759]
[1743903866031,9.57748744,1810.4,1810.3,0.17280443]
[1743903866233,9.57748744,1810.4,1810.3,0.98890443]
[1743903867548,6.57748744,1810.4,1810.3,0.98890443]
[1743903867757,6.02748744,1810.4,1810.3,0.98890443]
[1743903867953,6.02748744,1810.4,1810.3,5.34125187]
[1743903868255,0.00749744,1810.4,1810.3,5.34125187]
[1743903869146,0.00749744,1810.4,1810.3,0.98890443]
[1743903872352,0.00749744,1810.4,1810.3,1.04414228]
[1743903872558,0.00749744,1810.4,1810.3,4.85566443]
[1743903873260,0.00749744,1810.4,1810.3,0.98890443]
[1743903879968,0.00749744,1810.4,1810.3,0.17280443]
[1743903880171,7.42403744,1810.4,1810.1,0.1]
[1743903880463,11.29076744,1810.4,1810.3,0.1728022]
[1743903880667,13.82456932,1810.4,1810.3,0.1728022]
[1743903880855,9.95783932,1810.4,1810.1,0.1]
[1743903881049,13.82454932,1810.4,1810.1,0.1]
[1743903881575,13.82456932,1810.4,1810.1,0.1]
[1743903881748,0.55,1810.2,1810.1,0.1]
[1743903882461,0.55,1810.2,1810.1,0.27281699]
[1743903886644,0.95517112,1810.2,1810.1,0.27281699]
[1743903890872,0.40517112,1810.2,1810.1,0.27281699]
[1743903891059,6.01999,1810.3,1810.1,0.27281699]
[1743903891473,6.56999,1810.3,1810.2,0.17281699]
[1743903891774,6.98312435,1810.3,1810.2,0.17281699]
[1743903893174,6.98312435,1810.3,1810.1,0.1]
[1743903897283,8.23556672,1810.3,1810.1,0.1]
[1743903899382,6.98312435,1810.3,1810.1,0.1]
[1743903903582,6.98312435,1810.3,1810.2,0.17281036]
[1743903904584,9.51793061,1810.3,1810.2,0.17281036]
[1743903905488,6.98312435,1810.3,1810.2,0.17281036]
[1743903910188,6.98312435,1810.3,1810.2,0.1728022]
[1743903916592,6.01999,1810.3,1810.2,4.7918722]
[1743903916791,6.01999,1810.3,1810.2,1.41408942]
[1743903922382,0.42615474,1810.4,1810.2,1.41408942]
[1743903922597,0.42615474,1810.4,1810.3,0.1728022]
[1743903928321,0.00749744,1810.4,1810.3,0.22804053]
[1743903928898,0.00749744,1810.4,1810.3,4.0395622]
[1743903929105,0.00749744,1810.4,1810.3,5.68992214]
[1743903933731,0.00749744,1810.4,1810.3,5.68676176]
[1743903942643,0.00749744,1810.4,1810.3,5.74199145]
[1743903951049,0.00749744,1810.4,1810.3,5.74198718]
[1743903951214,0.00749744,1810.4,1810.3,5.68676176]
[1743903953154,0.00749744,1810.4,1810.3,8.68676176]
[1743903954547,0.00749744,1810.4,1810.3,11.22155947]
[1743903961761,7.44e-06,1810.4,1810.3,11.62803488]
[1743903964543,0.7217,1811.2,1810.9,3.86534]
[1743903964732,0.7217,1811.2,1811.0,0.386534]
[1743903964932,0.7217,1811.2,1810.9,7.73068]
[1743903965386,0.7217,1811.2,1811.0,3.86526]
[1743903969562,0.7217,1811.2,1811.0,7.73039]
[1743903969743,0.7217,1811.2,1811.0,7.90310893]
[1743903969956,0.7217,1811.2,1811.0,3.86513]
[1743903970982,0.7217,1811.2,1811.0,7.73025]
[1743903971289,0.7217,1811.2,1811.1,3.86505]
[1743903974783,0.03515997,1811.3,1811.1,8.502997]
[1743903974984,0.03515997,1811.3,1811.2,3.86484]
[1743903976407,0.03515997,1811.3,1811.2,4.03754205]
[1743903977398,0.03515997,1811.3,1811.2,3.86484]
[1743903978302,0.03515997,1811.3,1811.2,4.03754117]
[1743903978508,0.03515997,1811.3,1811.2,4.7379095]
[1743903979581,0.03515997,1811.3,1811.2,4.91060688]
[1743903981279,0.03515997,1811.3,1811.2,5.67540688]
[1743903985094,0.03515997,1811.3,1811.2,4.91060688]
[1743903985315,0.03515997,1811.3,1811.2,4.03753738]
[1743903988225,3.29165768,1811.3,1811.2,0.17269738]
[1743903988519,3.29165768,1811.3,1811.0,7.73036]
[1743903988691,0.7217,1811.2,1811.1,3.86505]
[1743903989292,0.7217,1811.2,1811.1,4.03776216]
[1743903990420,0.7217,1811.1,1810.6,3.86599]
[1743903990725,2.53479771,1810.8,1810.6,3.8661]
[1743903990894,0.7217,1810.9,1810.7,3.8659]
[1743903991096,0.7217,1810.9,1810.6,3.8661]
[1743903991417,0.7217,1810.9,1810.6,7.7322]
[1743903991630,0.7217,1810.9,1810.6,3.8661]
[1743903993109,1.14393511,1810.9,1810.6,3.8661]
[1743903993312,0.7217,1810.8,1810.5,3.86632]
[1743903994818,0.7217,1810.8,1810.5,3.92154626]
[1743903996105,0.7217,1810.8,1810.5,3.86632]
[1743903996522,0.7217,1810.8,1810.5,3.92154625]
[1743903997325,0.7217,1810.8,1810.5,0.05522625]
[1743903997532,0.7217,1810.7,1810.4,3.86653]
[1743903997825,2.53479771,1810.6,1810.3,3.86671]
[1743903998239,0.7217,1810.5,1810.2,3.86684]
[1743903998596,0.7217,1810.5,1810.2,3.92207542]
[1743903999198,2.53479771,1810.4,1810.2,0.05523542]
[1743903999400,0.7217,1810.3,1810.1,7.83436]
[1743903999903,0.7217,1810.3,1810.1,0.1]
[1743904000345,1.14667262,1810.3,1810.1,0.1]
[1743904002701,1.14667262,1810.3,1810.1,3.96716]
[1743904004333,1.14667262,1810.3,1810.1,0.1]
[1743904005935,0.7217,1810.2,1810.1,0.1]
[1743904006902,0.7217,1810.2,1810.1,3.96718]
[1743904008938,1.14667262,1810.3,1810.1,7.83436]
[1743904009103,0.7217,1810.3,1810.1,7.83436]
[1743904009302,0.7217,1810.3,1810.1,3.96718]
[1743904009702,1.12743715,1810.3,1810.1,3.96718]
[1743904010312,1.12743715,1810.3,1810.1,7.83422]
[1743904010836,1.12743715,1810.3,1810.1,3.96704]
[1743904011243,1.12743715,1810.3,1810.1,0.1]
[1743904011942,1.12743715,1810.3,1810.2,3.86697]
[1743904012445,1.12743715,1810.3,1810.1,3.9671]
[1743904016346,1.12743715,1810.3,1810.1,0.1]
[1743904019119,1.12743715,1810.3,1810.1,3.96718]
[1743904019320,1.12743715,1810.3,1810.1,3.9671]
[1743904021224,1.12743715,1810.3,1810.1,0.1]
[1743904022059,1.12743715,1810.3,1810.1,3.96718]
[1743904022599,1.12743715,1810.3,1810.1,0.1]
[1743904022958,1.49365545,1810.3,1810.1,0.1]
[1743904024275,4.49365545,1810.3,1810.1,0.1]
[1743904027488,6.08474585,1810.2,1810.1,0.1]
[1743904027659,6.80644585,1810.2,1810.1,0.1]
[1743904030271,10.67341585,1810.2,1810.1,0.1]
[1743904030471,12.20462998,1810.2,1810.1,0.1]
[1743904030894,18.22461998,1810.2,1810.1,0.1]
[1743904031502,14.35764998,1810.2,1810.1,0.1]
[1743904033901,18.22461998,1810.2,1810.1,0.1]
[1743904038008,14.35764998,1810.2,1810.1,0.1]
[1743904038606,18.22461998,1810.2,1810.1,0.1]
[1743904038772,18.22461998,1810.2,1810.1,0.06484003]
[1743904038974,14.35764998,1810.2,1810.1,0.06484003]
[1743904040578,13.63594998,1810.2,1810.1,0.06484003]
[1743904040778,12.10473585,1810.2,1810.1,0.06484003]
[1743904043202,12.82643585,1810.2,1810.1,0.06484003]
[1743904044117,16.69340585,1810.2,1810.1,0.06484003]
[1743904045921,9.56999,1810.2,1810.1,0.06484003]
[1743904046092,12.10473585,1810.2,1810.1,0.06484003]
[1743904046293,18.75444198,1810.2,1810.1,0.06484003]
[1743904048937,21.28918783,1810.2,1810.1,0.06484003]
[1743904049751,21.98830179,1810.2,1810.1,0.06484003]
[1743904050499,25.98830179,1810.2,1810.1,0.06484003]
[1743904051756,25.1462234,1810.2,1810.1,0.06484003]
[1743904053608,0.55,1809.6,1809.2,4.6371]
[1743904053803,10.79740331,1809.6,1809.2,4.6371]
[1743904054043,14.66574331,1809.6,1809.2,0.768]
[1743904055351,0.55,1809.3,1809.1,0.1]
[1743904055554,1.09991133,1809.3,1809.1,0.1]
[1743904055741,0.55,1809.3,1809.1,0.1]
[1743904057665,4.22741331,1809.2,1809.1,0.1]
[1743904057804,10.24740331,1809.2,1809.1,0.1]
[1743904058010,10.96910331,1809.2,1809.1,0.1]
[1743904058226,14.83821331,1809.2,1809.1,0.1]
[1743904058426,16.76392564,1809.2,1809.1,0.1]
[1743904059045,17.31392564,1809.2,1809.1,0.1]
[1743904059224,20.31392564,1809.2,1809.1,0.1]
[1743904059458,21.0130396,1809.2,1809.1,0.1]
[1743904062154,25.0130396,1809.2,1809.1,0.1]
[1743904066106,0.7217,1808.8,1808.4,4.69311]
[1743904066273,6.46999,1808.7,1808.4,4.69311]
[1743904066825,6.46999,1808.7,1808.4,8.56377]
[1743904066981,6.46999,1808.7,1808.4,4.69296]
[1743904067509,6.89130145,1808.7,1808.4,4.69296]
[1743904067697,6.89130145,1808.7,1808.6,3.87039]
[1743904068505,6.89130145,1808.7,1808.5,7.74102]
[1743904068889,6.89130145,1808.7,1808.5,3.87049]
[1743904069372,6.89130145,1808.7,1808.5,3.87046]
[1743904070099,6.89130145,1808.7,1808.6,3.87039]
[1743904070266,6.89130145,1808.7,1808.6,4.65199]
[1743904070906,6.89130145,1808.7,1808.5,3.87046]
[1743904071519,6.89130145,1808.7,1808.5,7.74095]
[1743904071838,6.34130145,1808.7,1808.6,3.87039]
[1743904072684,6.34130145,1808.7,1808.6,4.65199]
[1743904077111,5.91999,1809.2,1809.0,4.65584]
[1743904077827,5.91999,1809.2,1809.1,3.86932]
[1743904078272,5.91999,1809.2,1809.1,4.65572]
[1743904078479,5.91999,1809.6,1809.3,3.86873]
[1743904078770,5.91999,1809.6,1809.4,3.86868]
[1743904079069,6.811989,1809.6,1809.4,3.86868]
[1743904079221,4.0,1809.5,1809.4,3.86868]
[1743904079422,6.811989,1809.6,1809.4,3.86868]
[1743904080668,7.22180193,1809.6,1809.4,3.86868]
[1743904081368,7.22180193,1809.6,1809.3,7.73754]
[1743904081650,7.22180193,1809.6,1809.2,0.7864]
[1743904081651,0.72218019,1809.5,1809.2,4.6555]
[1743904082070,0.72218019,1809.5,1809.2,8.52446]
[1743904082637,0.72218019,1809.5,1809.2,4.65536]
[1743904083272,0.72218019,1809.5,1809.2,0.7864]
[1743904083659,6.64217019,1809.5,1809.2,0.7864]
[1743904084470,0.66421702,1809.4,1809.2,0.7864]
[1743904085474,6.64217019,1809.5,1809.2,4.65542]
[1743904086002,6.64217019,1809.5,1809.2,8.52439]
[1743904086270,6.64217019,1809.5,1809.2,4.65537]
[1743904086772,0.55,1809.4,1809.2,4.65537]
[1743904089098,0.55,1809.4,1809.2,0.7864]
[1743904089595,1.26921702,1809.4,1809.2,0.7864]
[1743904090294,1.26921702,1809.4,1809.0,4.67372]
[1743904090497,1.99091702,1809.4,1809.0,4.67372]
[1743904091297,5.85960702,1809.4,1809.0,4.67372]
[1743904093899,1.99091702,1809.4,1809.0,4.67372]
[1743904095606,7.91090702,1809.4,1809.0,4.67372]
[1743904095966,3.7910907,1809.3,1808.9,4.67394]
[1743904096185,0.55,1809.1,1808.9,4.67394]
[1743904098013,0.96488001,1809.1,1808.9,4.67394]
[1743904099495,4.68658001,1809.1,1808.7,4.69331]
[1743904099694,0.468658,1809.0,1808.7,4.69331]
[1743904099899,3.41488001,1809.1,1808.8,3.86988]
[1743904100220,3.41488001,1809.1,1808.9,3.86971]
[1743904101009,3.41488001,1809.1,1808.8,3.8699]
[1743904102698,0.55,1808.8,1808.5,4.68127]
[1743904102913,6.46999,1808.8,1808.5,4.68127]
[1743904103236,6.46999,1808.8,1808.5,3.87047]
[1743904103382,8.56143033,1808.8,1808.5,3.87047]
[1743904104758,7.83973033,1808.8,1808.6,3.8703]
[1743904104909,6.46999,1808.8,1808.6,3.87028]
[1743904105650,6.46999,1808.8,1808.6,7.74057]
[1743904105818,6.46999,1808.8,1808.6,3.87028]
[1743904107758,6.46999,1808.8,1808.6,4.68105]
[1743904108664,6.46999,1808.8,1808.6,3.87025]
[1743904108953,7.416989,1808.8,1808.5,7.74099]
[1743904109255,7.416989,1808.8,1808.5,3.87047]
[1743904111784,7.416989,1808.8,1808.5,7.74094]
[1743904111946,6.46999,1808.8,1808.6,3.87027]
[1743904112167,5.91999,1808.8,1808.7,3.87018]
[1743904113069,6.46999,1808.8,1808.7,3.87018]
[1743904113575,5.91999,1808.8,1808.7,3.87018]
[1743904130624,6.33487001,1809.1,1809.0,3.86954]
[1743904138031,5.91999,1809.1,1809.0,3.86954]
[1743904138402,6.34015666,1809.1,1809.0,3.86954]
[1743904144874,6.34015666,1809.1,1808.9,3.86973]
[1743904145055,0.55,1809.0,1808.7,3.87009]
[1743904145359,0.55,1809.0,1808.6,4.63418]
[1743904145725,3.08872728,1809.0,1808.6,4.63418]
[1743904146231,6.95826728,1809.0,1808.6,8.50434]
[1743904146429,8.81060924,1809.0,1808.6,4.63405]
[1743904146664,8.81060924,1809.0,1808.6,8.50433]
[1743904147693,6.27188196,1809.0,1808.6,8.50433]
[1743904148604,6.27188196,1809.0,1808.6,8.5043]
[1743904148809,1.3488882,1808.9,1808.6,7.7405]
[1743904149893,1.3488882,1808.9,1808.6,3.87025]
[1743904153677,0.55,1808.8,1808.4,0.7638]
[1743904154007,3.8703,1808.7,1808.3,3.87082]
[1743904154300,0.7217,1808.6,1808.4,3.87081]
[1743904155904,7.19169,1808.8,1808.4,3.87068]
[1743904156086,6.46999,1808.8,1808.6,3.87021]
[1743904156286,6.46999,1808.8,1808.6,7.74052]
[1743904156813,7.838689,1808.8,1808.5,3.87053]
[1743904157886,11.708669,1808.8,1808.4,3.8708]
[1743904158820,3.0,1808.7,1808.4,3.8708]
[1743904160634,3.0,1808.7,1808.4,7.74147]
[1743904160803,7.838689,1808.8,1808.5,3.87049]
[1743904161139,0.6898364,1808.7,1808.5,3.87049]
[1743904163322,6.64169,1808.8,1808.7,3.87018]
[1743904163522,5.91999,1808.8,1808.7,3.87018]
[1743904163690,5.91999,1808.8,1808.6,3.87035]
[1743904163895,5.91999,1808.8,1808.5,3.8704]
[1743904165512,5.91999,1808.8,1808.5,7.74087]
[1743904165723,7.69425475,1808.8,1808.5,7.74087]
[1743904166444,7.69425475,1808.8,1808.6,3.87037]
[1743904168047,5.91999,1808.8,1808.6,3.87037]
[1743904169165,5.91999,1808.8,1808.6,3.87028]
[1743904169316,11.52066411,1809.1,1808.6,3.87028]
[1743904169317,1.14186666,1809.1,1808.9,3.86965]
[1743904169651,3.97016666,1809.1,1809.0,3.86954]
[1743904169857,0.97016666,1809.1,1809.0,3.86954]
[1743904170405,0.42016666,1809.1,1809.0,4.64834]
[1743904170710,5.91999,1809.2,1809.0,8.51788]
[1743904171113,5.91999,1809.2,1809.0,3.86954]
[1743904171914,7.06227475,1809.2,1809.0,3.86954]
[1743904172240,7.06227475,1809.2,1808.9,0.7788]
[1743904172241,7.06227475,1809.2,1808.9,4.6485]
[1743904172442,7.06227475,1809.2,1808.9,3.8697]
[1743904172946,7.06227475,1809.2,1808.9,7.73934]
[1743904174246,7.06227475,1809.2,1808.9,3.86964]
[1743904174417,0.7217,1809.1,1808.9,3.86964]
[1743904175314,0.7217,1809.1,1808.9,3.86961]
[1743904175509,8.36942748,1809.1,1808.8,3.86995]
[1743904175846,0.55,1809.0,1808.7,3.87003]
[1743904176014,0.7217,1808.9,1808.7,3.87003]
[1743904177923,0.55,1809.0,1808.8,4.62906]
[1743904178127,3.41943615,1809.1,1808.9,3.86975]
[1743904178327,5.03900724,1809.1,1808.9,3.86975]
[1743904178545,0.55,1809.0,1808.8,3.86996]
[1743904178927,0.55,1809.0,1808.7,3.87013]
[1743904180850,0.55,1809.0,1808.7,7.74018]
[1743904182548,0.55,1809.0,1808.8,3.86996]
[1743904185047,0.55,1809.0,1808.7,3.87005]
[1743904185216,1.99111947,1809.0,1808.7,3.87005]
[1743904185954,5.03900724,1809.1,1808.8,0.7672]
[1743904186144,3.41943615,1809.1,1808.8,4.63705]
[1743904186957,3.41943615,1809.1,1808.8,8.50692]
[1743904187873,3.41943615,1809.1,1808.9,7.73935]
[1743904188279,0.41943615,1809.1,1808.9,7.73935]
[1743904188563,0.55,1809.1,1808.9,7.73935]
[1743904188946,0.55,1809.1,1808.9,3.86961]
[1743904189462,0.55,1809.1,1808.9,7.73928]
[1743904192666,0.55,1809.1,1809.0,3.86954]
[1743904192870,0.97338977,1809.1,1809.0,3.86954]
[1743904197087,0.97338977,1809.1,1809.0,3.82144]
[1743904201210,0.97338977,1809.1,1808.9,3.86961]
[1743904201374,1.73489775,1809.1,1808.9,3.86961]
[1743904202209,5.60425775,1809.1,1808.7,3.87015]
[1743904202416,5.60425775,1809.1,1808.7,7.74021]
[1743904202615,0.97338977,1809.1,1809.0,3.86954]
[1743904206414,0.42338977,1809.1,1809.0,3.86954]
[1743904206713,9.46999,1809.2,1809.1,3.86932]
[1743904208086,6.46999,1809.2,1809.1,4.68392]
[1743904209947,5.91999,1809.2,1809.1,4.68392]
[1743904210145,0.40981293,1809.6,1809.5,4.68307]
[1743904210312,5.91999,1809.7,1809.5,4.68307]
[1743904210706,9.46999,1809.7,1809.6,3.86825]
[1743904210944,5.91999,1809.7,1809.6,3.86825]
[1743904211310,5.91999,1809.7,1809.6,4.68285]
[1743904211516,5.91999,1809.7,1809.6,5.54350807]
[1743904212630,11.08299,1810.3,1810.1,3.86702]
[1743904213044,5.91999,1810.3,1810.2,3.86697]
[1743904215153,6.32510614,1810.3,1810.2,3.86697]
[1743904215959,6.32510614,1810.3,1810.1,3.86702]
[1743904217556,6.32510614,1810.3,1810.1,7.73404]
[1743904218827,6.32510614,1810.3,1810.2,3.86697]
[1743904226356,6.32510614,1810.3,1810.1,3.86702]
[1743904227231,6.32510614,1810.3,1810.2,3.86697]
[1743904231264,5.91999,1810.3,1810.2,3.86697]
[1743904231466,5.91999,1810.7,1810.2,4.69256]
[1743904231657,5.91999,1810.7,1810.5,3.86618]
[1743904231854,5.91999,1810.7,1810.6,3.86612]
[1743904232169,9.91999,1810.7,1810.6,3.86612]
[1743904232849,9.91999,1810.7,1810.5,3.86618]
[1743904233049,5.91999,1810.7,1810.5,4.69178]
[1743904233250,6.88602991,1810.7,1810.6,3.86612]
[1743904236141,6.88602991,1810.7,1810.5,4.69178]
[1743904239077,6.88602991,1810.7,1810.5,8.55797]
[1743904240579,6.88602991,1810.7,1810.6,3.86612]
[1743904243684,6.33602991,1810.7,1810.6,3.86612]
[1743904243860,5.91999,1810.7,1810.6,4.72191]
[1743904245390,0.1,1810.9,1810.6,4.72191]
[1743904245391,0.1,1810.9,1810.8,3.86569]
[1743904245679,0.1,1810.9,1810.8,3.92090958]
[1743904246046,0.1,1810.9,1810.8,3.86569]
[1743904258623,0.1,1810.9,1810.8,3.92090862]
[1743904258907,0.1,1810.9,1810.8,4.77722348]
[1743904260131,0.1,1810.9,1810.8,4.72200486]
[1743904261832,1e-05,1810.9,1810.8,8.05574902]
[1743904262130,1e-05,1810.9,1810.8,11.05574902]
[1743904262733,1e-05,1810.9,1810.8,11.11095482]
[1743904262938,1e-05,1810.9,1810.8,11.05574902]
[1743904263434,1e-05,1810.9,1810.8,5.52430486]
[1743904270426,1e-05,1810.9,1810.8,5.57951861]
[1743904271925,1e-05,1810.9,1810.8,5.52430486]
[1743904272128,1e-05,1810.9,1810.8,5.57950848]
[1743904273031,1e-05,1810.9,1810.8,8.57950848]
[1743904273233,1e-05,1810.9,1810.8,8.52430486]
[1743904273736,1e-05,1810.9,1810.8,8.5795067]
[1743904273948,1e-05,1810.9,1810.8,8.57950671]
[1743904276266,1e-05,1810.9,1810.8,8.52430486]
[1743904277676,1e-05,1810.9,1810.8,8.57950199]
[1743904277848,1e-05,1810.9,1810.8,8.52430486]
[1743904278054,1e-05,1810.9,1810.8,8.57950169]
[1743904278371,1e-05,1810.9,1810.8,8.52430486]
[1743904279052,1e-05,1810.9,1810.8,8.57950172]
[1743904279252,1e-05,1810.9,1810.8,8.52430486]
[1743904279456,1e-05,1810.9,1810.8,8.57950169]
[1743904279641,1e-05,1810.9,1810.8,8.52430486]
[1743904280474,1e-05,1810.9,1810.8,8.57950209]
[1743904282285,1e-05,1810.9,1810.8,8.52430486]
[1743904283182,1e-05,1810.9,1810.8,14.68430486]
[1743904284147,1e-05,1810.9,1810.8,20.99150308]
[1743904285601,1e-05,1810.9,1810.8,21.09150308]
[1743904285752,1e-05,1810.9,1810.8,20.99150308]
[1743904285949,1e-05,1810.9,1810.8,21.09150308]
[1743904286283,0.7217,1811.8,1811.7,3.86377]
[1743904286482,0.7217,1811.8,1811.7,4.69172543]
[1743904286685,0.7217,1811.8,1811.7,10.54330738]
[1743904287269,0.1,1811.9,1811.8,3.86356]
[1743904287683,0.1,1811.9,1811.8,3.91874682]
[1743904287861,0.1,1811.9,1811.8,9.77056877]
[1743904288056,0.1,1811.9,1811.8,11.21127945]